bitfinex/quotes_BTCUSD_20250917
["timestamp","ask_amount","ask_price","bid_price","bid_amount"]
[1758134408015,0.25867005,115340.0,115330.0,1e-08]
[1758134408236,0.17340038,115340.0,115330.0,1e-08]
[1758134408443,0.86564467,115340.0,115330.0,1e-08]
[1758134408652,0.17340038,115340.0,115330.0,1e-08]
[1758134408827,0.86564467,115340.0,115330.0,1e-08]
[1758134409925,0.17340038,115340.0,115330.0,1e-08]
[1758134410069,1.19356467,115340.0,115330.0,8.152e-05]
[1758134411078,0.86564467,115340.0,115330.0,8.152e-05]
[1758134412793,0.17340038,115340.0,115330.0,8.152e-05]
[1758134412965,0.86564467,115340.0,115330.0,8.152e-05]
[1758134413564,0.86574467,115340.0,115330.0,8.152e-05]
[1758134413964,0.86574467,115340.0,115330.0,8.151e-05]
[1758134415282,0.95101434,115340.0,115330.0,8.151e-05]
[1758134416497,0.17344549,115310.0,115300.0,0.06925573]
[1758134416713,1.19328978,115310.0,115300.0,0.00014147]
[1758134417064,0.17344549,115310.0,115300.0,0.00014147]
[1758134417267,1.19324978,115310.0,115300.0,0.00014147]
[1758134417471,0.86578978,115310.0,115300.0,0.00014147]
[1758134417848,1.19334978,115310.0,115300.0,0.00014147]
[1758134417988,1.27861945,115310.0,115300.0,0.00014147]
[1758134418186,1.27861945,115310.0,115300.0,1e-08]
[1758134419191,0.95105945,115310.0,115300.0,1e-08]
[1758134419341,1.28733658,115310.0,115300.0,1e-08]
[1758134420491,0.95985658,115310.0,115300.0,1e-08]
[1758134420739,1.20202691,115310.0,115300.0,1e-08]
[1758134421962,0.50978262,115310.0,115300.0,1e-08]
[1758134422160,0.17354549,115310.0,115300.0,1e-08]
[1758134422566,0.86778978,115310.0,115300.0,1e-08]
[1758134422728,0.86578978,115310.0,115300.0,0.08526968]
[1758134422931,0.86578978,115310.0,115300.0,1e-08]
[1758134423130,0.86778978,115310.0,115300.0,1e-08]
[1758134423338,0.86578978,115310.0,115300.0,1e-08]
[1758134423963,0.86678978,115310.0,115300.0,1e-08]
[1758134424163,0.86578978,115310.0,115300.0,1e-08]
[1758134425442,0.86778978,115310.0,115300.0,1e-08]
[1758134425658,0.17354549,115310.0,115300.0,0.17346054]
[1758134426171,0.17454549,115310.0,115300.0,1e-08]
[1758134426412,0.0001,115310.0,115300.0,0.08526968]
[1758134426630,0.17354549,115310.0,115300.0,0.08526968]
[1758134426862,0.0011,115310.0,115300.0,0.25873021]
[1758134427270,0.0011,115310.0,115300.0,1.04293803]
[1758134427479,0.0011,115310.0,115300.0,1.1064041]
[1758134427684,0.0011,115310.0,115300.0,1.5064041]
[1758134427895,0.0001,115330.0,115310.0,0.17344549]
[1758134428119,0.0001,115370.0,115350.0,0.17338534]
[1758134428331,0.0001,115400.0,115380.0,0.17334026]
[1758134428538,0.0001,115410.0,115390.0,1.2779592]
[1758134428746,0.0001,115410.0,115400.0,0.17331022]
[1758134428971,0.0001,115410.0,115400.0,0.25857989]
[1758134429174,0.0001,115410.0,115400.0,0.95082418]
[1758134429393,0.0002413,115410.0,115400.0,0.95082418]
[1758134429605,0.0002413,115410.0,115400.0,1.03410418]
[1758134430021,0.0002413,115410.0,115400.0,0.34185989]
[1758134430514,0.0002413,115410.0,115400.0,0.41230967]
[1758134430777,0.0219032,115410.0,115390.0,0.17332432]
[1758134430988,0.17453674,115410.0,115390.0,0.25858658]
[1758134431170,0.86678103,115410.0,115390.0,0.25858658]
[1758134431383,0.86678103,115410.0,115390.0,0.08526967]
[1758134431594,0.17331022,115400.0,115390.0,0.08526967]
[1758134431911,0.86565451,115400.0,115380.0,0.727]
[1758134432144,0.0001,115400.0,115390.0,0.17332524]
[1758134432360,0.88731828,115400.0,115380.0,0.98560938]
[1758134432574,0.86565451,115400.0,115380.0,0.98560938]
[1758134432793,0.17332524,115390.0,115380.0,0.81226967]
[1758134433440,0.17332524,115390.0,115380.0,0.98560993]
[1758134433567,0.86556953,115390.0,115380.0,0.727]
[1758134433769,0.86566953,115390.0,115380.0,0.727]
[1758134433986,0.17334026,115380.0,115370.0,0.08328]
[1758134434204,0.0001,115390.0,115370.0,0.58347445]
[1758134434411,0.17342635,115390.0,115370.0,0.58347374]
[1758134434618,0.02166753,115380.0,115370.0,0.98347529]
[1758134434819,0.0001,115380.0,115370.0,1.06874496]
[1758134436440,0.0001,115380.0,115370.0,1.76398925]
[1758134436645,1e-08,115380.0,115370.0,1.36398925]
[1758134437124,1e-08,115400.0,115390.0,0.17332524]
[1758134437342,0.0004,115430.0,115390.0,0.17332524]
[1758134437343,0.0004,115430.0,115420.0,0.17328019]
[1758134437571,0.06821573,115480.0,115460.0,0.17320954]
[1758134437804,0.06821573,115500.0,115480.0,0.1731799]
[1758134438023,0.17317516,115490.0,115480.0,0.08526967]
[1758134438233,0.17319016,115480.0,115470.0,0.32668]
[1758134438447,0.17319016,115480.0,115460.0,0.48324]
[1758134438448,0.17320516,115470.0,115460.0,0.48324]
[1758134438666,0.86544945,115470.0,115460.0,0.4]
[1758134439346,0.17328424,115420.0,115400.0,0.39936554]
[1758134439533,0.17328424,115420.0,115410.0,0.58512487]
[1758134439753,0.17328019,115420.0,115410.0,0.81182967]
[1758134439999,0.86552448,115420.0,115410.0,0.4]
[1758134440213,0.17329927,115410.0,115390.0,0.17332391]
[1758134440421,0.1732952,115410.0,115400.0,0.08526967]
[1758134440982,0.86553949,115410.0,115400.0,0.48526967]
[1758134441191,0.86553949,115410.0,115390.0,0.0001413]
[1758134441192,0.17331022,115400.0,115390.0,0.0001413]
[1758134441397,0.86555451,115400.0,115390.0,0.0001413]
[1758134441598,0.17331022,115400.0,115390.0,0.0001413]
[1758134441810,0.86555451,115400.0,115390.0,0.0001413]
[1758134442010,0.17331022,115400.0,115390.0,0.0001413]
[1758134442210,0.86555451,115400.0,115390.0,0.0001413]
[1758134443021,0.69224429,115400.0,115390.0,0.17346654]
[1758134443258,0.86555451,115400.0,115390.0,0.0001413]
[1758134443469,0.17330036,115410.0,115390.0,0.25873484]
[1758134443643,0.17330036,115410.0,115400.0,0.32644]
[1758134444226,0.17330036,115410.0,115390.0,0.58517577]
[1758134444227,0.86554465,115410.0,115390.0,0.58517577]
[1758134444406,0.69224429,115410.0,115390.0,0.26940203]
[1758134444590,0.86554026,115410.0,115400.0,0.3264]
[1758134444987,0.86554026,115410.0,115400.0,0.3274]
[1758134445346,0.17329597,115410.0,115400.0,0.3274]
[1758134445549,0.86554026,115410.0,115400.0,0.3274]
[1758134445776,0.86554026,115410.0,115400.0,0.401]
[1758134446041,0.86554026,115410.0,115400.0,0.72736]
[1758134446247,0.17329597,115410.0,115400.0,0.72736]
[1758134446486,0.86552505,115420.0,115400.0,0.32736]
[1758134446686,0.17328097,115420.0,115400.0,0.58593935]
[1758134446805,0.1732952,115410.0,115400.0,0.81262967]
[1758134447003,0.17328097,115420.0,115400.0,0.65957989]
[1758134447259,0.17328097,115420.0,115410.0,0.41158967]
[1758134447911,0.1732952,115410.0,115400.0,0.4002]
[1758134448115,0.86553949,115410.0,115400.0,0.81178967]
[1758134448308,0.17328097,115420.0,115400.0,0.98509678]
[1758134448516,0.1732952,115410.0,115400.0,0.98509678]
[1758134448762,0.17328097,115420.0,115400.0,0.98509678]
[1758134448962,0.87421563,115430.0,115410.0,0.25856487]
[1758134448963,0.18197134,115430.0,115410.0,0.25856487]
[1758134449299,0.18197134,115430.0,115420.0,0.32628]
[1758134449500,0.19046097,115450.0,115420.0,0.58482986]
[1758134449501,0.00866175,115450.0,115420.0,0.58482986]
[1758134449707,0.17325017,115440.0,115430.0,0.25853485]
[1758134450122,0.1819004,115450.0,115430.0,0.25853485]
[1758134450332,0.1732754,115470.0,115450.0,0.17323516]
[1758134450530,0.17326053,115500.0,115460.0,0.58472897]
[1758134450531,0.87416282,115500.0,115460.0,0.58472897]
[1758134450735,0.18189169,115510.0,115480.0,0.17319016]
[1758134450948,0.00047246,115500.0,115490.0,0.3262]
[1758134451170,0.19527765,115500.0,115490.0,0.3262]
[1758134451369,0.17363263,115500.0,115490.0,0.3262]
[1758134451573,0.17363263,115500.0,115490.0,0.7262]
[1758134451879,0.86587692,115500.0,115490.0,0.4]
[1758134452498,0.86687692,115500.0,115490.0,0.4]
[1758134452872,0.17463263,115500.0,115490.0,0.4]
[1758134453072,0.86687692,115500.0,115490.0,0.4]
[1758134453277,0.17463263,115500.0,115490.0,0.4]
[1758134453687,0.86687692,115500.0,115490.0,0.4]
[1758134454166,0.17321825,115470.0,115430.0,0.40117573]
[1758134454383,0.17321825,115470.0,115450.0,0.06821573]
[1758134454384,0.86546682,115460.0,115450.0,0.06821573]
[1758134454609,0.17321825,115470.0,115450.0,0.06821573]
[1758134454813,0.17321825,115470.0,115460.0,0.32604]
[1758134455038,0.17321825,115470.0,115460.0,0.72604]
[1758134455252,0.86546254,115470.0,115460.0,0.72604]
[1758134455693,0.17322016,115460.0,115450.0,0.0031]
[1758134455911,0.17322016,115460.0,115450.0,0.0001]
[1758134456115,0.86546445,115460.0,115450.0,0.0001]
[1758134456681,0.17367741,115470.0,115450.0,0.08536967]
[1758134456906,0.8659217,115470.0,115460.0,0.326]
[1758134457326,0.17322016,115460.0,115450.0,0.08536967]
[1758134457575,0.86546445,115460.0,115450.0,0.41132967]
[1758134457777,0.86546445,115460.0,115450.0,0.32706]
[1758134458033,0.17322016,115460.0,115450.0,0.58456483]
[1758134458219,0.17322016,115460.0,115450.0,0.41132967]
[1758134458407,0.86546445,115460.0,115450.0,0.32602]
[1758134458644,0.86546445,115460.0,115450.0,0.0001]
[1758134459018,0.86546445,115460.0,115450.0,0.0011]
[1758134460245,1.27661412,115460.0,115450.0,0.0011]
[1758134460399,0.17323516,115450.0,115440.0,0.0001]
[1758134460598,0.95074912,115450.0,115440.0,0.0001]
[1758134461213,0.17325017,115440.0,115430.0,0.0001]
[1758134461421,0.17328019,115420.0,115410.0,1e-08]
[1758134461623,0.1732952,115410.0,115390.0,0.1]
[1758134461828,0.17334026,115380.0,115370.0,0.06821573]
[1758134462030,1.27665422,115380.0,115370.0,0.06821573]
[1758134462342,0.8656146,115360.0,115350.0,0.06821573]
[1758134462548,0.95088427,115360.0,115350.0,0.06835703]
[1758134462715,1.28524415,115360.0,115350.0,0.06835703]
[1758134462889,1.28524415,115360.0,115350.0,0.0001413]
[1758134463292,1.27668427,115360.0,115350.0,0.0001413]
[1758134463494,1.1914146,115360.0,115350.0,0.0001413]
[1758134463696,0.17337031,115360.0,115350.0,0.0001413]
[1758134463923,0.8656146,115360.0,115350.0,0.0001413]
[1758134464374,0.17337031,115360.0,115350.0,0.0001413]
[1758134464612,0.8656146,115360.0,115350.0,0.0011413]
[1758134464853,0.17337031,115360.0,115350.0,0.0011413]
[1758134465263,0.69224429,115370.0,115350.0,0.25879631]
[1758134465465,0.17334151,115380.0,115360.0,0.58443998]
[1758134465657,0.17335529,115370.0,115360.0,0.58443998]
[1758134465826,0.17334026,115380.0,115360.0,0.58443998]
[1758134466246,0.17334026,115380.0,115370.0,0.17335529]
[1758134466619,0.17334026,115380.0,115370.0,0.08526967]
[1758134466841,0.17332631,115390.0,115380.0,0.17334022]
[1758134467072,0.17329543,115410.0,115380.0,0.58436989]
[1758134467317,0.86555708,115400.0,115390.0,0.08526967]
[1758134467504,0.17331022,115400.0,115390.0,0.08526967]
[1758134467756,0.88721828,115400.0,115390.0,0.08526967]
[1758134467981,0.18196019,115410.0,115380.0,0.49909982]
[1758134468200,0.18199311,115420.0,115390.0,0.08526967]
[1758134468435,0.17331022,115400.0,115390.0,0.08526967]
[1758134468662,0.66664411,115400.0,115380.0,0.32576]
[1758134468872,0.66664411,115400.0,115380.0,0.58436978]
[1758134469098,0.17331022,115400.0,115390.0,0.17332524]
[1758134469332,0.49333389,115400.0,115390.0,0.17332524]
[1758134469560,0.49333389,115400.0,115390.0,0.14]
[1758134469561,0.66664411,115400.0,115390.0,0.14]
[1758134469787,0.17331022,115400.0,115390.0,0.54]
[1758134469993,0.66764411,115400.0,115390.0,0.94]
[1758134470205,0.49433389,115400.0,115390.0,1.11332524]
[1758134470415,0.67529385,115410.0,115390.0,1.1985949]
[1758134470624,0.67529385,115410.0,115390.0,1.02526967]
[1758134470625,0.17431022,115400.0,115390.0,1.02526967]
[1758134470802,0.66764411,115400.0,115390.0,1.02536967]
[1758134471017,0.66764411,115400.0,115390.0,1.19869491]
[1758134471229,0.001,115400.0,115390.0,1.19869491]
[1758134471445,0.17331022,115400.0,115390.0,1.35104967]
[1758134471746,0.67629413,115410.0,115390.0,1.52437451]
[1758134472180,0.18296024,115410.0,115400.0,0.08526967]
[1758134472398,0.001,115410.0,115400.0,0.25857989]
[1758134473022,0.0001,115410.0,115400.0,0.25857989]
[1758134473683,0.0001,115410.0,115400.0,0.65857989]
[1758134474063,0.0001,115410.0,115400.0,0.65867989]
[1758134474475,0.1733952,115410.0,115400.0,0.65867989]
[1758134474677,0.66672909,115410.0,115400.0,0.48536967]
[1758134474873,0.0001,115410.0,115400.0,0.81096967]
[1758134475080,0.0001,115410.0,115400.0,0.98427989]
[1758134475287,0.00057188,115420.0,115410.0,0.1732952]
[1758134475490,0.0001,115430.0,115420.0,0.17328019]
[1758134475658,0.0001,115430.0,115420.0,1.07744375]
[1758134476045,0.0001,115430.0,115420.0,0.58410986]
[1758134476664,0.0001,115430.0,115420.0,0.58406986]
[1758134477075,0.0001,115430.0,115420.0,0.65854986]
[1758134477286,0.0001,115430.0,115420.0,0.66054986]
[1758134477457,0.0001,115430.0,115420.0,0.98606986]
[1758134477767,0.0001,115430.0,115420.0,0.66054986]
[1758134477887,0.0001,115430.0,115420.0,0.98606986]
[1758134478446,0.17719816,115450.0,115440.0,0.17325017]
[1758134478682,0.00014148,115450.0,115440.0,0.58399984]
[1758134478901,0.17337664,115450.0,115440.0,0.41074967]
[1758134479239,0.17347664,115450.0,115440.0,0.58399984]
[1758134479445,0.66681053,115450.0,115440.0,0.08526967]
[1758134479650,0.1732632,115440.0,115420.0,0.58194419]
[1758134479852,0.67547228,115450.0,115420.0,0.58194419]
[1758134479853,0.67547228,115450.0,115430.0,0.58393426]
[1758134480051,0.17325017,115440.0,115430.0,0.41066967]
[1758134480228,0.17325017,115440.0,115430.0,0.08526967]
[1758134480433,0.18213839,115450.0,115430.0,0.41066967]
[1758134480677,0.68824033,115440.0,115430.0,0.41066967]
[1758134480888,0.66681093,115450.0,115430.0,0.41066967]
[1758134481087,0.68824033,115440.0,115430.0,0.41066967]
[1758134481273,0.17347704,115450.0,115430.0,0.58393485]
[1758134481477,0.17335017,115440.0,115430.0,0.58493485]
[1758134481679,0.17337791,115450.0,115430.0,0.58493485]
[1758134481880,0.00014148,115450.0,115440.0,0.17325017]
[1758134482070,0.00014148,115450.0,115440.0,0.25851984]
[1758134482283,0.66671053,115450.0,115440.0,0.25851984]
[1758134482544,0.66671053,115450.0,115440.0,0.08526967]
[1758134482742,0.66681053,115450.0,115440.0,0.41058967]
[1758134482993,0.49357537,115450.0,115440.0,0.32528]
[1758134483209,0.00224148,115450.0,115440.0,1.07713373]
[1758134483428,0.17321013,115510.0,115480.0,0.17318784]
[1758134483429,0.02164689,115490.0,115480.0,0.17318784]
[1758134483668,0.00014151,115490.0,115480.0,0.49847016]
[1758134483902,0.00014151,115490.0,115480.0,0.41054967]
[1758134484114,0.17331667,115490.0,115480.0,0.41054967]
[1758134484322,0.19496356,115490.0,115480.0,0.41054967]
[1758134484531,0.66665056,115490.0,115480.0,0.41054967]
[1758134484744,0.66665056,115490.0,115480.0,0.08526967]
[1758134484960,0.17320516,115470.0,115460.0,0.0832]
[1758134485218,0.66653905,115470.0,115460.0,0.41046967]
[1758134485424,0.66653905,115470.0,115460.0,0.3252]
[1758134485848,0.17323516,115450.0,115440.0,0.4]
[1758134486059,0.17323516,115450.0,115440.0,0.7252]
[1758134486261,0.17322849,115460.0,115440.0,0.98371876]
[1758134486262,0.66656238,115460.0,115440.0,0.98371876]
[1758134486486,0.17323516,115450.0,115440.0,0.98371876]
[1758134486702,0.66656905,115450.0,115440.0,0.81046967]
[1758134486908,0.66656905,115450.0,115440.0,0.98371984]
[1758134487119,0.66656238,115460.0,115440.0,0.98371984]
[1758134487328,0.66656905,115450.0,115440.0,0.81246967]
[1758134487557,0.17323516,115450.0,115440.0,0.402]
[1758134487736,0.66656905,115450.0,115440.0,0.72712]
[1758134487911,0.66656905,115450.0,115440.0,0.90037017]
[1758134488146,0.66656238,115460.0,115440.0,0.89837017]
[1758134488485,0.66656238,115460.0,115440.0,0.98563984]
[1758134488608,0.17322016,115460.0,115450.0,0.08526967]
[1758134488959,0.66655405,115460.0,115450.0,0.25850483]
[1758134489408,0.49333389,115460.0,115450.0,0.25850483]
[1758134489610,0.17320552,115470.0,115450.0,0.08526967]
[1758134489819,0.17322016,115460.0,115450.0,0.25850425]
[1758134489999,0.17322016,115460.0,115450.0,0.58358425]
[1758134490356,0.17322016,115460.0,115450.0,0.58458425]
[1758134490560,0.66655405,115460.0,115450.0,0.41134967]
[1758134490942,0.66655405,115460.0,115450.0,0.41034967]
[1758134491204,0.66655405,115460.0,115450.0,0.41234967]
[1758134491430,0.66655405,115460.0,115450.0,0.72704]
[1758134491677,0.17320552,115470.0,115450.0,1.30027516]
[1758134491898,0.17320574,115470.0,115450.0,1.38554394]
[1758134492109,0.66655405,115460.0,115450.0,0.88726967]
[1758134492310,0.66655405,115460.0,115450.0,1.21226967]
[1758134492687,0.66655405,115460.0,115450.0,1.38350483]
[1758134492947,0.67518418,115480.0,115450.0,1.38450483]
[1758134493152,0.67518418,115480.0,115460.0,0.25848983]
[1758134493153,0.17320516,115470.0,115460.0,0.25848983]
[1758134493565,0.18185029,115480.0,115460.0,0.25848983]
[1758134493772,0.18185029,115480.0,115470.0,0.49816516]
[1758134493927,0.17319016,115480.0,115470.0,0.41022967]
[1758134494128,0.66852405,115480.0,115470.0,0.41022967]
[1758134494357,0.66652405,115480.0,115470.0,0.08526967]
[1758134494520,0.17319016,115480.0,115470.0,0.41022967]
[1758134494717,0.17319016,115480.0,115470.0,0.58343483]
[1758134494937,0.18183391,115490.0,115470.0,0.98343483]
[1758134495139,0.18197536,115490.0,115480.0,0.17319016]
[1758134495339,0.17319016,115480.0,115470.0,0.81022967]
[1758134495546,0.17319016,115480.0,115470.0,0.98343483]
[1758134495772,0.66652405,115480.0,115470.0,0.72496]
[1758134495993,0.17321211,115470.0,115460.0,0.4]
[1758134496226,0.17321211,115470.0,115460.0,0.48526967]
[1758134496439,0.666546,115470.0,115460.0,1.21014967]
[1758134496675,0.17321211,115470.0,115460.0,1.12488]
[1758134496887,0.666546,115470.0,115460.0,1.12488]
[1758134497091,0.17321211,115470.0,115460.0,0.8]
[1758134497319,0.666546,115470.0,115460.0,0.8]
[1758134497525,0.666546,115470.0,115460.0,0.72488]
[1758134497930,0.991426,115470.0,115460.0,0.4]
[1758134498156,1.07669567,115470.0,115460.0,0.4]
[1758134499064,1.07669567,115470.0,115460.0,0.401]
[1758134499296,0.75181567,115470.0,115460.0,0.4]
[1758134499504,1.07665567,115470.0,115460.0,0.4]
[1758134499729,1.07865567,115470.0,115460.0,0.4]
[1758134499935,1.16392534,115470.0,115460.0,1e-08]
[1758134500158,1.65725923,115470.0,115460.0,1e-08]
[1758134500621,1.70525923,115470.0,115460.0,1e-08]
[1758134500840,1.75725923,115470.0,115460.0,1e-08]
[1758134502578,1.75525923,115470.0,115460.0,1e-08]
[1758134502992,1.43241923,115470.0,115460.0,1e-08]
[1758134503299,1.75521923,115470.0,115460.0,1e-08]
[1758134503529,1.75721923,115470.0,115460.0,1e-08]
[1758134504019,1.43241923,115470.0,115460.0,1e-08]
[1758134504255,1.75521923,115470.0,115460.0,1e-08]
[1758134504715,1.75721923,115470.0,115460.0,1e-08]
[1758134504944,1.75721923,115470.0,115410.0,0.46821573]
[1758134504945,0.17328019,115420.0,115410.0,0.06821573]
[1758134505130,1.07664375,115420.0,115410.0,0.06821573]
[1758134505906,0.1732952,115410.0,115400.0,0.0001]
[1758134506109,0.66662909,115410.0,115400.0,0.00057188]
[1758134506808,0.1732952,115410.0,115400.0,0.00057188]
[1758134507019,0.66662909,115410.0,115400.0,0.00057188]
[1758134507640,0.66662909,115410.0,115400.0,0.00357188]
[1758134507853,0.66662909,115410.0,115400.0,0.00057188]
[1758134512458,1.15996298,115410.0,115400.0,0.00057188]
[1758134512667,1.159978,115400.0,115390.0,0.0001]
[1758134512886,1.56992767,115400.0,115390.0,0.00024148]
[1758134513247,1.57002767,115400.0,115390.0,0.00024148]
[1758134514682,0.66674411,115400.0,115390.0,0.00024148]
[1758134515392,1.162078,115400.0,115390.0,0.00024148]
[1758134515617,1.160078,115400.0,115390.0,0.00024148]
[1758134516216,1.24534767,115400.0,115390.0,0.00024148]
[1758134516391,1.24534767,115400.0,115390.0,1e-08]
[1758134516595,1.33061734,115400.0,115390.0,1e-08]
[1758134516803,1.33061734,115400.0,115360.0,1e-08]
[1758134516804,0.17334026,115380.0,115360.0,1e-08]
[1758134517016,1.59156215,115370.0,115360.0,0.00014131]
[1758134517409,1.07655885,115370.0,115360.0,0.00014131]
[1758134517641,0.75195885,115370.0,115360.0,0.00014131]
[1758134517876,1.07655885,115370.0,115360.0,0.00014131]
[1758134519211,1.16382852,115370.0,115360.0,0.00014131]
[1758134519393,1.16182852,115370.0,115360.0,0.00014131]
[1758134519837,0.58322496,115370.0,115360.0,0.00114131]
[1758134520046,1.07655885,115370.0,115360.0,0.00114131]
[1758134520267,1.07655885,115370.0,115360.0,0.00014131]
[1758134521530,1.07855885,115370.0,115360.0,0.00014131]
[1758134521731,1.07655885,115370.0,115360.0,0.00014131]
[1758134521946,1.16003809,115360.0,115350.0,0.0001]
[1758134522151,1.24544909,115360.0,115350.0,0.0001]
[1758134522356,1.16005312,115350.0,115340.0,0.0001]
[1758134522564,1.48457312,115350.0,115340.0,0.0001]
[1758134522966,1.48453312,115350.0,115340.0,0.0001]
[1758134523233,1.56980277,115350.0,115340.0,0.0001]
[1758134523802,1.56980279,115350.0,115340.0,0.0001]
[1758134524001,1.24532279,115350.0,115340.0,0.0001]
[1758134524231,1.56980279,115350.0,115340.0,0.0001]
[1758134525601,0.17343045,115320.0,115310.0,0.16008303]
[1758134525804,0.66676434,115320.0,115310.0,0.15141076]
[1758134526048,0.17344549,115310.0,115300.0,0.0003]
[1758134526257,0.17344549,115310.0,115300.0,0.2590302]
[1758134526444,0.66676434,115320.0,115300.0,0.2590302]
[1758134526772,0.17344549,115310.0,115300.0,0.08556967]
[1758134527010,0.66677938,115310.0,115300.0,0.08556967]
[1758134527217,0.66677938,115310.0,115300.0,0.2590302]
[1758134527443,0.66677938,115310.0,115300.0,0.08556967]
[1758134527643,0.66687938,115310.0,115300.0,0.08556967]
[1758134527864,0.66687938,115310.0,115300.0,0.2590302]
[1758134528316,0.66687938,115310.0,115300.0,0.08556967]
[1758134529024,0.66687938,115310.0,115300.0,0.0033]
[1758134529025,1.07617892,115310.0,115300.0,0.0033]
[1758134529233,1.07617892,115310.0,115300.0,0.0003]
[1758134529670,1.07617892,115310.0,115300.0,0.0023]
[1758134529882,1.27527883,115310.0,115300.0,0.0003]
[1758134530089,1.27527883,115310.0,115300.0,0.0013]
[1758134530304,1.3605485,115310.0,115300.0,0.0013]
[1758134530529,1.3605485,115310.0,115300.0,1e-08]
[1758134530800,0.17346053,115300.0,115290.0,1e-08]
[1758134531021,0.17346053,115300.0,115270.0,0.00034]
[1758134531022,0.17349063,115280.0,115270.0,0.00034]
[1758134531251,0.86592443,115280.0,115270.0,0.00034]
[1758134531475,0.9511941,115280.0,115270.0,0.00034]
[1758134531684,1.2754741,115280.0,115270.0,0.00034]
[1758134532107,0.95133527,115280.0,115270.0,0.00034]
[1758134532322,1.27561527,115280.0,115270.0,0.00034]
[1758134532525,1.27761527,115280.0,115270.0,0.00034]
[1758134532744,1.27561527,115280.0,115270.0,0.00034]
[1758134533162,1.27761527,115280.0,115270.0,0.00034]
[1758134533374,1.27771527,115280.0,115270.0,0.00034]
[1758134533588,1.36298494,115280.0,115270.0,0.00034]
[1758134534404,1.36098494,115280.0,115270.0,0.00034]
[1758134534586,1.36098494,115280.0,115270.0,1e-08]
[1758134534813,1.392718,115280.0,115270.0,1e-08]
[1758134535183,1.388718,115280.0,115270.0,1e-08]
[1758134535393,1.36098494,115280.0,115270.0,1e-08]
[1758134535804,1.36498494,115280.0,115270.0,1e-08]
[1758134536209,1.04070494,115280.0,115270.0,1e-08]
[1758134536456,1.36494494,115280.0,115270.0,1e-08]
[1758134536994,0.17350568,115270.0,115260.0,1e-08]
[1758134537193,1.03647882,115270.0,115260.0,1e-08]
[1758134537806,0.17353579,115250.0,115240.0,1e-08]
[1758134538008,1.30313232,115250.0,115240.0,1e-08]
[1758134538219,0.17359604,115210.0,115200.0,0.00172768]
[1758134538461,1.19018984,115210.0,115200.0,0.00172768]
[1758134538661,1.19018984,115210.0,115180.0,0.06821573]
[1758134538662,0.17362618,115190.0,115180.0,0.06821573]
[1758134538867,0.86605998,115190.0,115180.0,0.06821573]
[1758134539070,0.17365475,115180.0,115160.0,0.17367128]
[1758134539267,0.6924338,115180.0,115160.0,0.25893779]
[1758134539469,0.70133722,115180.0,115170.0,0.17365633]
[1758134539695,0.00014099,115180.0,115170.0,0.17365633]
[1758134539898,0.00014099,115180.0,115170.0,0.258926]
[1758134540114,0.00014099,115180.0,115170.0,1.34369553]
[1758134540398,0.72279615,115230.0,115210.0,0.17357618]
[1758134540549,0.72279615,115230.0,115220.0,0.17358097]
[1758134540550,0.00868821,115230.0,115220.0,0.17358097]
[1758134540838,0.71437112,115230.0,115220.0,0.17358097]
[1758134541043,0.69267539,115230.0,115220.0,0.17358097]
[1758134541243,0.00024159,115230.0,115220.0,0.17358097]
[1758134541472,0.00024159,115230.0,115220.0,0.25885064]
[1758134542047,0.00024159,115230.0,115220.0,0.65885064]
[1758134542775,0.69267539,115230.0,115220.0,0.25885064]
[1758134543109,0.8662413,115230.0,115220.0,0.09026967]
[1758134543340,1.20082114,115230.0,115220.0,0.005]
[1758134543556,0.00024159,115230.0,115210.0,0.17357618]
[1758134543741,0.00024159,115230.0,115220.0,0.17658097]
[1758134543970,0.1738075,115230.0,115220.0,0.003]
[1758134544169,0.8662413,115230.0,115220.0,0.17658097]
[1758134544385,0.8662413,115230.0,115220.0,0.003]
[1758134544622,0.00024159,115230.0,115220.0,0.17658097]
[1758134545003,3.127e-05,115240.0,115220.0,0.26185064]
[1758134545204,0.1735845,115240.0,115220.0,0.25932077]
[1758134545404,0.93436927,115240.0,115230.0,0.17356591]
[1758134545588,0.1735845,115240.0,115230.0,0.17356591]
[1758134546009,0.17356591,115230.0,115220.0,0.25932077]
[1758134546216,0.91277542,115240.0,115220.0,0.26032077]
[1758134546400,0.73922219,115240.0,115230.0,0.17356591]
[1758134546575,0.91277304,115240.0,115230.0,0.17356591]
[1758134546971,0.91277304,115240.0,115220.0,0.25932077]
[1758134547402,0.17356591,115230.0,115220.0,0.25932077]
[1758134547597,0.17356591,115230.0,115220.0,0.0857398]
[1758134547825,0.91265683,115230.0,115220.0,0.1740511]
[1758134548219,0.0001,115230.0,115220.0,0.25932077]
[1758134548629,0.17366591,115230.0,115220.0,0.25932077]
[1758134548810,0.17366591,115230.0,115220.0,0.26032077]
[1758134549015,0.17366591,115230.0,115220.0,0.25932077]
[1758134549238,0.0001,115230.0,115220.0,0.26032077]
[1758134549452,0.17366591,115230.0,115220.0,0.26042077]
[1758134549692,0.0001,115230.0,115220.0,0.25942077]
[1758134549872,0.0001,115230.0,115220.0,0.58438077]
[1758134550076,0.0001,115230.0,115220.0,0.4107998]
[1758134550274,0.0001,115230.0,115220.0,0.58350859]
[1758134550495,0.0001,115230.0,115220.0,0.58450859]
[1758134551228,0.0001,115230.0,115220.0,1.32359951]
[1758134551439,0.0001,115230.0,115220.0,0.58450859]
[1758134551863,0.0001,115230.0,115220.0,0.58350859]
[1758134552068,0.0001,115230.0,115220.0,0.58550859]
[1758134552286,0.17365085,115240.0,115230.0,0.17356591]
[1758134552534,0.17365085,115240.0,115230.0,0.2589634]
[1758134552975,0.17365085,115240.0,115230.0,0.08539749]
[1758134553424,0.17365085,115240.0,115230.0,0.2589634]
[1758134553605,0.0001,115240.0,115230.0,0.2589634]
[1758134553913,0.0001,115240.0,115230.0,0.99805432]
[1758134554140,0.0001,115260.0,115250.0,0.17353579]
[1758134554358,0.0001,115260.0,115250.0,1.23642671]
[1758134554539,0.0001,115260.0,115250.0,0.89733579]
[1758134554682,0.0001,115260.0,115250.0,1.63655453]
[1758134555096,0.0001,115260.0,115250.0,1.7218242]
[1758134555302,0.0001,115260.0,115250.0,1.3980242]
[1758134555513,0.0001,115260.0,115250.0,1.7217842]
[1758134555714,0.0001,115260.0,115250.0,0.98269328]
[1758134556153,0.0001,115260.0,115250.0,1.7257842]
[1758134556320,0.0001,115260.0,115250.0,1.78646288]
[1758134556535,0.0001,115260.0,115250.0,1.04737196]
[1758134556734,0.0001,115260.0,115250.0,1.78846288]
[1758134557372,0.0001,115260.0,115250.0,1.04937196]
[1758134557627,0.73919092,115260.0,115250.0,0.08539749]
[1758134557828,0.0001,115260.0,115250.0,0.26193328]
[1758134558031,0.17362073,115260.0,115250.0,0.08839749]